[Event "GER-chT Youth Countries 2018"]
[Site "Wurzburg"]
[Date "2018.10.04"]
[Round "3"]
[White "Steffens, Oliver"]
[Black "Gressmann, Moritz"]
[Result "1/2-1/2"]
[ECO "B06"]
[WhiteElo "1960"]
[BlackElo "2106"]
[Annotator "NA"]
[PlyCount "162"]
[EventDate "2018.10.03"]
[EventType "team-tourn"]
[EventCountry "GER"]
[SourceTitle "playchess.com"]
[Source "ChessBase"]
[SourceQuality "1"]
[TimeControl "40/5400+30:1800+30"]

1. e4 {[%emt 0:00:00]} g6 {[%emt 0:00:14]} 2. d4 {[%emt 0:00:10]} Bg7 {[%emt 0:00:16]} 3. Nc3 {[%emt 0:02:35]} d6 {[%emt 0:00:11]} 4. f4 {[%emt 0:01:27]} a6 {[%emt 0:00:34]} 5. a4 {[%emt 0:00:55]} b6 {[%emt 0:02:27] B06: Modern Defence} 6. Nf3 {[%emt 0:02:10]} Bb7 {[%emt 0:00:30]} 7. Bc4 {[%emt 0:02:33]} Nd7 {[%emt 0:06:41]} (7... e6 8. d5 exd5 9. Bxd5 Bxd5 10. Qxd5 Ra7 11. O-O Nf6 12. Qc4 O-O 13. e5 {1-0 (44) Iskandarov,M (2486)-Lomsadze,D (2352) Kesan 2018}) 8. O-O {[%emt 0:01:02]} c6 $146 {[%emt 0:14:59]} ({Predecessor:} 8... e6 9. Qe1 Ne7 10. f5 exf5 11. exf5 O-O 12. fxg6 Nxg6 {0-1 (54) Vazelaki,S (1600)-Malikentzou,N (1260) Greece 2007}) 9. f5 {[%emt 0:16:43]} d5 {[%emt 0:06:28]} 10. exd5 {[%emt 0:08:25]} cxd5 {[%emt 0:00:43]} 11. fxg6 {[%emt 0:00:28]} hxg6 {[%emt 0:00:13]} 12. Nxd5 {[%emt 0:05:04]} e6 {[%emt 0:10:02]} 13. Qe2 {[%emt 0:03:00]} Rc8 {[%emt 0:06:22]} 14. Bg5 {[%emt 0:06:30]} Ndf6 {[%emt 0:00:55]} 15. Nxf6+ {[%emt 0:02:19]} Bxf6 {[%emt 0:12:38]} 16. Bxf6 {[%emt 0:04:22]} Nxf6 {[%emt 0:00:16]} 17. c3 {[%emt 0:00:26]} Bxf3 {[%emt 0:01:37]} 18. Rxf3 {[%emt 0:01:23]} Qc7 {[%emt 0:00:56]} 19. h3 {[%emt 0:13:57]} Qxc4 {[%emt 0:01:03]} 20. Qe5 {[%emt 0:00:59]} O-O {[%emt 0:06:48]} 21. Qxf6 {[%emt 0:00:44]} Qd5 {[%emt 0:01:36]} 22. Raf1 {[%emt 0:02:55]} Rc7 {[%emt 0:07:14]} 23. Rf4 {[%emt 0:01:56]} Qd8 {[%emt 0:00:44]} 24. Qe5 {[%emt 0:00:15]} Rd7 {[%emt 0:01:58]} 25. c4 {[%emt 0:09:57]} Qc7 {[%emt 0:01:57]} 26. Qg5 {[%emt 0:00:24]} Qd8 {[%emt 0:01:10]} 27. Qe5 {[%emt 0:05:41]} Qc7 {[%emt 0:00:05]} 28. Qxc7 {[%emt 0:02:15]} Rxc7 {[%emt 0:00:02]} 29. b3 {[%emt 0:00:27]} Rd8 {[%emt 0:01:54]} 30. Kf2 {[%emt 0:01:54]} e5 $2 {[%emt 0:00:30]} ({Black should try} 30... b5 $14) 31. dxe5 {[%emt 0:02:18]} Rd2+ {[%emt 0:00:11]} 32. Kg3 {[%emt 0:00:20]} Re2 {[%emt 0:00:32]} 33. Rf6 {[%emt 0:00:31]} b5 {[%emt 0:02:34]} 34. axb5 {[%emt 0:01:21]} axb5 {[%emt 0:00:02]} 35. cxb5 {[%emt 0:00:20]} Rxe5 {[%emt 0:00:12] [#]} 36. b6 $1 {[%emt 0:00:55]} Rb7 {[%emt 0:00:01]} 37. R1f3 {[%emt 0:00:27]} Kg7 {[%emt 0:01:18]} (37... Rb5 $142) 38. Rc6 {[%emt 0:00:31]} Re6 {[%emt 0:02:37]} 39. Rfc3 {[%emt 0:01:00]} Rxb6 {[%emt 0:00:38]} 40. Rxb6 Rxb6 {[%emt 0:00:01]} 41. Kf4 {[%emt 0:30:33]} Kf6 {[%emt 0:30:21]} 42. Ke4 {[%emt 0:00:51]} Ke6 {[%emt 0:00:29]} 43. Kd4 {[%emt 0:00:04]} Kd6 $11 {[%emt 0:04:29]} 44. Kc4 {[%emt 0:00:00]} Rc6+ {[%emt 0:00:00]} 45. Kd4 {[%emt 0:00:00]} (45. Kb4 $16 Ra6 46. Rf3) 45... Ra6 {[%emt 0:00:00]} 46. Rf3 {[%emt 0:00:00]} Ra2 {[%emt 0:00:00] [#]} 47. g4 $1 {[%emt 0:00:00]} Rh2 $2 {[%emt 0:00:00]} (47... Ke6 $16 48. b4 f5 49. gxf5+ gxf5) 48. Rc3 $2 {[%emt 0:00:00]} (48. Rxf7 $18 Rxh3 49. b4) 48... f5 {[%emt 0:00:00]} 49. gxf5 {[%emt 0:00:00]} gxf5 {[%emt 0:00:00]} 50. Rd3 {[%emt 0:00:00]} Rh1 {[%emt 0:00:00]} 51. b4 {[%emt 0:00:00]} Rb1 {[%emt 0:00:00]} 52. Kc4+ $14 {[%emt 0:00:00]} Kc6 {[%emt 0:00:00]} 53. Rd4 {[%emt 0:00:00]} Rc1+ {[%emt 0:00:44]} 54. Kd3 Re1 {[%emt 0:04:32]} 55. h4 {[%emt 0:00:00]} Re8 {[%emt 0:05:16]} 56. Kc4 {[%emt 0:00:00]} Re1 {[%emt 0:00:47]} 57. Rf4 {[%emt 0:00:00]} Rh1 58. Kd3 Rh3+ {[%emt 0:02:29]} 59. Ke2 {[%emt 0:00:00]} Kd5 {[%emt 0:00:28]} 60. Rxf5+ {[%emt 0:00:00]} Ke4 {[%emt 0:00:05]} 61. Rc5 {[%emt 0:00:00]} Rh2+ {[%emt 0:00:13]} 62. Kf1 {[%emt 0:00:00]} Kf3 {[%emt 0:01:18]} 63. Rc3+ {[%emt 0:00:00]} Kg4 {[%emt 0:00:10]} 64. Kg1 {[%emt 0:03:42]} Rb2 {[%emt 0:00:01]} 65. Rc4+ {[%emt 0:00:31]} Kg3 {[%emt 0:00:00]} 66. Kf1 {[%emt 0:00:24]} Kf3 {[%emt 0:00:07]} 67. Ke1 {[%emt 0:01:21]} Ke3 {[%emt 0:00:02]} 68. Rc3+ {[%emt 0:00:25]} Kd4 {[%emt 0:00:12]} 69. Rg3 {[%emt 0:00:05]} Rh2 {[%emt 0:01:23]} 70. Rg4+ {[%emt 0:02:13]} Ke3 {[%emt 0:00:03]} 71. Rg3+ {[%emt 0:04:45]} Kf4 {[%emt 0:00:13]} 72. Rb3 {[%emt 0:00:32]} Rxh4 {[%emt 0:00:23]} 73. Kd2 {[%emt 0:00:34]} Ke5 {[%emt 0:00:54]} 74. Kc2 {[%emt 0:01:28]} Kd5 {[%emt 0:01:22]} 75. Kb2 {[%emt 0:00:22]} Kc6 {[%emt 0:00:18]} 76. Ka3 {[%emt 0:00:14]} Kb5 {[%emt 0:00:05]} 77. Rg3 {[%emt 0:00:11]} Rh5 {[%emt 0:00:07]} 78. Kb3 {[%emt 0:00:39]} Rf5 {[%emt 0:00:03]} 79. Kc3 {[%emt 0:00:11]} Rh5 {[%emt 0:00:04]} 80. Kb3 {[%emt 0:01:22]} Rf5 {[%emt 0:00:07]} 81. Kc3 {[%emt 0:00:01]} Rh5 {[%emt 0:00:22]} 1/2-1/2

[Event "GER-chT Youth Countries 2018"]
[Site "Wurzburg"]
[Date "2018.10.04"]
[Round "3"]
[White "Ley, Sabrina"]
[Black "Ratay, Meike"]
[Result "0-1"]
[ECO "E32"]
[WhiteElo "1902"]
[BlackElo "1887"]
[Annotator "NA RC"]
[PlyCount "52"]
[EventDate "2018.10.03"]
[EventType "team-tourn"]
[EventCountry "GER"]
[SourceTitle "playchess.com"]
[Source "ChessBase"]
[SourceQuality "1"]
[TimeControl "40/5400+30:1800+30"]

1. d4 {[%emt 0:00:00]} Nf6 {[%emt 0:00:00]} 2. c4 {[%emt 0:00:00]} e6 {[%emt 0:00:00]} 3. Nc3 {[%emt 0:00:00]} Bb4 {[%emt 0:00:00]} 4. Qc2 {[%emt 0:00:05]} O-O {[%emt 0:03:09]} 5. a3 {[%emt 0:00:13]} Bxc3+ {[%emt 0:00:54]} 6. Qxc3 {[%emt 0:00:06]} d5 {[%emt 0:08:11]} 7. Bg5 {[%emt 0:06:21]} dxc4 {[%emt 0:15:58] E36: Nimzo-Indian: Classical: 4...d5 5 a3} 8. e3 {[%emt 0:14:11]} (8. Qxc4 b6 9. Rd1 Ba6 10. Qa4 h6 11. Bh4 Qe7 12. Nf3 Rd8 13. e3 Bxf1 14. Rxf1 c5 15. dxc5 Rxd1+ 16. Qxd1 bxc5 {1-0 (43) Mamedyarov,S (2801)-Caruana,F (2822) Saint Louis 2018}) 8... b5 {[%emt 0:08:06]} 9. a4 {[%emt 0:06:51]} c6 {[%emt 0:02:21]} 10. Be2 {[%emt 0:06:06]} Bb7 {[%emt 0:09:43]} 11. Bf3 {[%emt 0:02:37]} a6 $146 {[%emt 0:01:13]} ({Predecessor:} 11... Qe7 12. Ne2 a6 13. O-O Nbd7 14. e4 h6 15. Bh4 {0-1 (39) Paunovic,T (2355)-Bortnyk,O (2170) ICC INT 2009}) 12. Ne2 {[%emt 0:04:52]} Nbd7 {[%emt 0:01:49]} 13. O-O {[%emt 0:03:25]} h6 {[%emt 0:02:13]} 14. Bh4 {[%emt 0:02:06]} g5 {[%emt 0:01:05]} 15. Bg3 {[%emt 0:00:30]} g4 {[%emt 0:00:13]} 16. Bxg4 {[%emt 0:05:46]} Nxg4 {[%emt 0:00:21]} 17. e4 {[%emt 0:04:08]} c5 {[%emt 0:07:08]} 18. Bd6 {[%emt 0:13:37]} Re8 {[%emt 0:06:14]} 19. Qh3 {[%emt 0:14:53]} Qg5 {[%emt 0:08:47]} 20. Ra3 {[%emt 0:00:58]} Bxe4 {[%emt 0:04:50]} 21. Rg3 {[%emt 0:01:38]} f5 $2 {[%emt 0:06:20]} ({Black should try} 21... Ndf6 $19 22. Be5 Bf5 23. Bxf6 Qxf6) 22. Bf4 {[%emt 0:02:49]} Qf6 {[%emt 0:01:26]} 23. f3 {[%emt 0:01:51]} Bd3 {[%emt 0:00:37]} (23... Kh7 $1 $11 24. fxg4 fxg4 25. Qxg4 Rf8) 24. Re1 $19 {[%emt 0:04:55]} (24. fxg4 $16 Bxe2 25. gxf5+ Kf7 26. fxe6+ Rxe6 27. Rf2) 24... Bxe2 {[%emt 0:01:11]} 25. Rxe2 {[%emt 0:00:08]} Qxd4+ {[%emt 0:00:08]} 26. Rf2 {[%emt 0:00:09]} Qxf2+ {[%emt 0:00:13]} 0-1

[Event "GER-chT Youth Countries 2018"]
[Site "Wurzburg"]
[Date "2018.10.04"]
[Round "3"]
[White "von Krosigk, Florian"]
[Black "Arnhold, Steffi"]
[Result "1/2-1/2"]
[ECO "B41"]
[WhiteElo "1897"]
[BlackElo "1955"]
[Annotator "NA RC"]
[PlyCount "81"]
[EventDate "2018.10.03"]
[EventType "team-tourn"]
[EventCountry "GER"]
[SourceTitle "playchess.com"]
[Source "ChessBase"]
[SourceQuality "1"]
[TimeControl "40/5400+30:1800+30"]

1. e4 {[%emt 0:00:00]} c5 {[%emt 0:00:00]} 2. Nf3 {[%emt 0:00:00]} e6 {[%emt 0:00:00]} 3. d4 {[%emt 0:00:00]} cxd4 {[%emt 0:00:00]} 4. Nxd4 {[%emt 0:00:00]} a6 {[%emt 0:00:12]} 5. c4 {[%emt 0:00:53]} Nf6 {[%emt 0:00:45]} 6. Nc3 {[%emt 0:00:36]} Qc7 {[%emt 0:03:04]} 7. Be3 {[%emt 0:02:45]} Be7 {[%emt 0:01:45]} 8. Be2 {[%emt 0:01:14]} d6 {[%emt 0:01:48]} 9. O-O {[%emt 0:00:46]} Nbd7 {[%emt 0:01:19]} 10. Rc1 {[%emt 0:02:31]} b6 {[%emt 0:01:56]} 11. f3 {[%emt 0:01:45]} O-O {[%emt 0:01:55]} 12. Qd2 {[%emt 0:02:10]} Bb7 {[%emt 0:01:49]} 13. Rfd1 {[%emt 0:02:19]} Rac8 {[%emt 0:01:38]} 14. Bf1 {[%emt 0:02:19]} Rfe8 {[%emt 0:02:35]} 15. Qf2 {[%emt 0:02:40]} Qb8 {[%emt 0:06:36]} 16. b3 {[%emt 0:10:09]} Bd8 {[%emt 0:05:34]} 17. g3 {[%emt 0:12:26] A31: Symmetrical English: 2 Nf3 Nf6 3 d4} (17. Kh1 Bc7 18. Qh4 Ne5 19. Bg1 Ng6 20. Qf2 h5 21. Nc2 d5 22. exd5 exd5 23. Nxd5 Nxd5 24. cxd5 Bf4 {1-0 (68) Dervishi,E (2552)-Shchekachev,A (2534) Paris 2017}) 17... Bc7 {[%emt 0:09:08]} 18. Nde2 {[%emt 0:07:38]} Ba8 {[%emt 0:07:23]} 19. Nf4 {[%emt 0:03:57]} Ne5 $146 {[%emt 0:04:57]} ({Predecessor:} 19... Bb7 20. Rc2 Re7 21. Rcd2 Bc6 {1-0 (73) Chua,Z (2139)-Nguyen,Q (2119) Singapore 2008}) 20. Na4 {[%emt 0:06:38]} b5 {[%emt 0:07:27]} 21. cxb5 {[%emt 0:01:13]} axb5 {[%emt 0:00:08]} 22. Nc3 {[%emt 0:07:54]} Nfg4 {[%emt 0:07:06]} 23. fxg4 {[%emt 0:12:28]} Nxg4 {[%emt 0:00:11]} 24. Qf3 {[%emt 0:06:22]} Nxe3 {[%emt 0:01:22]} 25. Rd3 {[%emt 0:01:15]} Nxf1 {[%emt 0:02:36]} 26. Rxf1 {[%emt 0:00:17]} Bb6+ {[%emt 0:00:58]} 27. Kg2 {[%emt 0:01:27]} b4 {[%emt 0:11:01]} 28. Nh5 {[%emt 0:05:56]} f5 {[%emt 0:01:33]} 29. Nd5 {[%emt 0:01:08]} exd5 {[%emt 0:06:17]} 30. Qxf5 {[%emt 0:01:06]} Qc7 {[%emt 0:01:09]} 31. Rdf3 {[%emt 0:03:17]} dxe4 {[%emt 0:04:17]} 32. Rf4 {[%emt 0:00:36]} e3+ {[%emt 0:01:47]} 33. Kh3 {[%emt 0:00:10]} Qe7 {[%emt 0:04:20]} 34. Rg4 {[%emt 0:01:44]} g6 {[%emt 0:02:14]} 35. Rxg6+ {[%emt 0:00:31] [#]} hxg6 $11 {[%emt 0:00:10]} ({Black should play} 35... Kh8 $1 $19 36. Rh6 Be4 37. Qf6+ Qxf6 38. Rhxf6 Bd4 39. Rxd6 e2) 36. Qxg6+ {[%emt 0:00:04]} Kh8 {[%emt 0:00:12]} 37. Qh6+ $1 {[%emt 0:01:25]} Qh7 {[%emt 0:01:38]} 38. Qf6+ {[%emt 0:00:12]} Kg8 {[%emt 0:00:30]} 39. Qg5+ {[%emt 0:00:14]} Kh8 {[%emt 0:00:33]} 40. Qf6+ {[%emt 0:00:51]} Kg8 {[%emt 0:00:09]} 41. Qg5+ {[%emt 0:30:04]} 1/2-1/2

[Event "GER-chT Youth Countries 2018"]
[Site "Wurzburg"]
[Date "2018.10.04"]
[Round "3"]
[White "Riegel, Arinna"]
[Black "Zeuner, Ole"]
[Result "1-0"]
[ECO "A06"]
[WhiteElo "1881"]
[BlackElo "1865"]
[Annotator "NA RC"]
[PlyCount "63"]
[EventDate "2018.10.03"]
[EventType "team-tourn"]
[EventCountry "GER"]
[SourceTitle "playchess.com"]
[Source "ChessBase"]
[SourceQuality "1"]
[TimeControl "40/5400+30:1800+30"]

1. Nf3 {[%emt 0:00:00]} d5 {[%emt 0:00:00]} 2. g3 {[%emt 0:00:00]} g6 {[%emt 0:00:22]} 3. Bg2 {[%emt 0:00:00]} Bg7 {[%emt 0:00:18]} 4. d4 {[%emt 0:00:00]} Nd7 {[%emt 0:00:50] D02: 1 d4 d5 2 Nf3 sidelines, including 2...Nf6 3 g3 and 2...Nf6 3 Bf4} (4... Nf6 5. O-O O-O 6. c4 dxc4 7. Na3 c5 8. Nxc4 Be6 9. Nce5 cxd4 10. Qxd4 Qxd4 11. Nxd4 Bd5 12. Rd1 Bxg2 13. Kxg2 Rd8 14. Bf4 Nd5 15. Ndf3 Na6 16. Bd2 {½-½ (35) Nakamura,H (2777)-Caruana,F (2822) Saint Louis 2018}) 5. O-O {[%emt 0:01:37]} Ngf6 {[%emt 0:00:30]} 6. Re1 {[%emt 0:06:59]} c5 $146 {[%emt 0:04:48]} ({Predecessor:} 6... O-O 7. Nbd2 c5 8. e3 Qb6 9. c3 Re8 10. e4 Nxe4 11. Nxe4 dxe4 12. Rxe4 Nf6 13. dxc5 Qxc5 {0-1 (42) Haecker,R (1764)-Glaser,R (1827) Moembris 2003}) 7. c4 {[%emt 0:05:56]} O-O {[%emt 0:01:58]} 8. cxd5 {[%emt 0:11:40]} Nxd5 {[%emt 0:03:07]} 9. e4 {[%emt 0:01:21]} Nb4 {[%emt 0:02:35]} 10. a3 {[%emt 0:11:41]} Nc6 {[%emt 0:00:52]} 11. d5 {[%emt 0:02:15]} Nd4 {[%emt 0:08:37]} 12. Nbd2 {[%emt 0:06:24]} Qb6 {[%emt 0:07:37]} 13. Rb1 {[%emt 0:03:39]} e6 {[%emt 0:04:12]} 14. Nxd4 {[%emt 0:04:44]} cxd4 {[%emt 0:00:28]} 15. Qb3 {[%emt 0:05:54]} exd5 {[%emt 0:05:13]} 16. Qxd5 {[%emt 0:02:27]} Ne5 {[%emt 0:03:41]} 17. Nc4 {[%emt 0:03:38]} Nxc4 {[%emt 0:00:18]} 18. Qxc4 {[%emt 0:00:01]} Be6 {[%emt 0:00:11]} 19. Qd3 {[%emt 0:01:49]} Rac8 {[%emt 0:02:45]} 20. Bf4 {[%emt 0:03:44]} Bc4 {[%emt 0:01:32]} 21. Qd2 {[%emt 0:00:31]} Qb3 {[%emt 0:04:33]} 22. Bh3 {[%emt 0:06:05]} Be6 {[%emt 0:08:05]} 23. Bxe6 {[%emt 0:04:14]} fxe6 {[%emt 0:04:33]} 24. e5 {[%emt 0:01:19]} Rfd8 {[%emt 0:05:51]} 25. Rbc1 {[%emt 0:01:15]} d3 {[%emt 0:02:24]} (25... Qd5 $11) 26. Bg5 {[%emt 0:09:35]} Re8 {[%emt 0:04:48]} 27. Rcd1 {[%emt 0:04:30]} Rc2 {[%emt 0:11:01]} 28. Qxd3 {[%emt 0:00:07]} Qxb2 {[%emt 0:00:27]} 29. Rd2 {[%emt 0:02:05]} (29. Qd7 $16 Rf8 30. Qxe6+ Kh8 31. Rb1 Qxa3 32. Be3) 29... Rxd2 30. Bxd2 Bxe5 {[%emt 0:03:20]} 31. Qd7 {[%emt 0:00:18]} Kf8 $18 {[%emt 0:02:37]} (31... Rf8 $16) 32. Bb4+ {[%emt 0:00:12]} 1-0

[Event "GER-chT Youth Countries 2018"]
[Site "Wurzburg"]
[Date "2018.10.04"]
[Round "3"]
[White "Bui, Ngoc Han Julia"]
[Black "Genov, Valentin"]
[Result "1-0"]
[ECO "B77"]
[WhiteElo "1876"]
[BlackElo "1756"]
[Annotator "NA RC"]
[PlyCount "65"]
[EventDate "2018.10.03"]
[EventType "team-tourn"]
[EventCountry "GER"]
[SourceTitle "playchess.com"]
[Source "ChessBase"]
[SourceQuality "1"]
[TimeControl "40/5400+30:1800+30"]

1. e4 {[%emt 0:00:00]} c5 {[%emt 0:00:00]} 2. Nf3 {[%emt 0:00:00]} d6 {[%emt 0:00:00]} 3. d4 {[%emt 0:00:00]} cxd4 {[%emt 0:00:00]} 4. Nxd4 {[%emt 0:00:00]} Nf6 {[%emt 0:00:00]} 5. Nc3 {[%emt 0:00:00]} g6 {[%emt 0:00:28]} 6. Be3 {[%emt 0:00:00]} Bg7 {[%emt 0:00:05]} 7. f3 {[%emt 0:00:52]} Nc6 {[%emt 0:00:24]} 8. Bc4 {[%emt 0:01:13]} O-O {[%emt 0:00:35]} 9. Qd2 {[%emt 0:00:29]} Bd7 {[%emt 0:00:51]} 10. h4 {[%emt 0:00:28]} h5 {[%emt 0:03:13]} 11. O-O-O {[%emt 0:00:05]} Qa5 {[%emt 0:00:20]} 12. Kb1 {[%emt 0:02:32]} Rfc8 {[%emt 0:01:01]} 13. Bb3 {[%emt 0:02:07]} Ne5 {[%emt 0:01:06]} 14. Bh6 {[%emt 0:12:36] B79: Sicilian Dragon: Yugoslav Attack, 9 Bc4 Bd7 10 0-0-0 Qa5} (14. Bg5 Kf8 15. f4 Neg4 16. Rhe1 Rc5 17. f5 gxf5 18. Nxf5 Bxf5 19. exf5 Re8 20. Nd5 {½-½ (20) Karjakin,S (2769)-Van Wely,L (2640) Wijk aan Zee 2016}) 14... Bxh6 {[%emt 0:05:05]} 15. Qxh6 {[%emt 0:00:15]} Rxc3 {[%emt 0:00:12]} 16. bxc3 {[%emt 0:00:53]} Rc8 {[%emt 0:06:11]} 17. Qd2 {[%emt 0:29:40]} Nc4 {[%emt 0:06:57]} 18. Bxc4 {[%emt 0:00:34]} Rxc4 {[%emt 0:00:07]} 19. Nb3 {[%emt 0:03:36]} Qc7 {[%emt 0:11:25]} 20. Qc1 $146 {[%emt 0:10:07]} ({Predecessor:} 20. g4 Bxg4 21. e5 dxe5 22. fxg4 Kg7 23. Qd8 Nxg4 24. Qxc7 Rxc7 {0-1 (54) Antognazza,B-Izquierdo,D (2285) San Jose 1989}) 20... a5 {[%emt 0:06:29]} 21. Rd4 {[%emt 0:07:41]} Rxc3 {[%emt 0:03:05]} 22. Rd3 {[%emt 0:03:11]} Rc6 {[%emt 0:06:07]} 23. Nd4 {[%emt 0:02:21]} Rc4 {[%emt 0:03:29]} 24. Rhd1 {[%emt 0:06:23]} a4 {[%emt 0:04:06]} 25. c3 {[%emt 0:02:45]} b5 {[%emt 0:17:12]} 26. a3 {[%emt 0:03:45]} d5 {[%emt 0:07:28]} 27. exd5 {[%emt 0:01:24]} Nxd5 {[%emt 0:01:01] [#]} 28. Nxb5 $1 {[%emt 0:02:33]} Bxb5 {[%emt 0:02:58]} 29. Rxd5 {[%emt 0:00:05]} Rxc3 {[%emt 0:00:10]} 30. Qb2 {[%emt 0:03:34]} Be8 {[%emt 0:06:33]} 31. Rd8 {[%emt 0:01:15]} Kf8 {[%emt 0:00:11]} 32. R1d3 {[%emt 0:03:02]} Rc6 {[%emt 0:01:00]} 33. Qh8# 1-0

[Event "GER-chT Youth Countries 2018"]
[Site "Wurzburg"]
[Date "2018.10.04"]
[Round "3"]
[White "Browning, Rebecca"]
[Black "Hommer, Jeremy"]
[Result "1/2-1/2"]
[ECO "C01"]
[WhiteElo "1873"]
[BlackElo "1983"]
[Annotator "NA RC"]
[PlyCount "91"]
[EventDate "2018.10.03"]
[EventType "team-tourn"]
[EventCountry "GER"]
[SourceTitle "playchess.com"]
[Source "ChessBase"]
[SourceQuality "1"]
[TimeControl "40/5400+30:1800+30"]

1. e4 {[%emt 0:00:00]} e6 {[%emt 0:00:00]} 2. d4 {[%emt 0:00:00]} d5 {[%emt 0:00:00]} 3. exd5 {[%emt 0:00:00]} exd5 {[%emt 0:00:06]} 4. Bd3 {[%emt 0:00:00]} Bd6 {[%emt 0:00:21]} 5. c3 {[%emt 0:01:03]} Ne7 {[%emt 0:00:43]} 6. Bg5 {[%emt 0:02:00] C01: Französische Verteidigung (Abtauschvariante)} (6. Ne2 O-O 7. O-O Bf5 8. Bf4 c6 9. Bxd6 Qxd6 10. Bxf5 Nxf5 {½-½ (10) Drazic,S (2426)-Petakov,U (2326) Novi Sad 2017}) 6... O-O {[%emt 0:10:50]} 7. Ne2 {[%emt 0:01:23]} f6 {[%emt 0:07:22]} 8. Bh4 {[%emt 0:00:41]} Bf5 {[%emt 0:00:47]} 9. Bg3 {[%emt 0:00:51]} c6 {[%emt 0:02:53]} 10. Bxd6 $146 {[%emt 0:01:57]} ({Vorgänger:} 10. Bxf5 Nxf5 11. Qd3 Ne7 12. Nd2 f5 13. f4 Nd7 14. Nf3 {½-½ (38) Brunner,T (1882)-Riegler,M (1606) Willingen 2018}) 10... Qxd6 {[%emt 0:00:23]} 11. Na3 {[%emt 0:00:16]} Re8 {[%emt 0:01:42]} 12. Nc2 {[%emt 0:00:39]} Nd7 {[%emt 0:10:50]} 13. Ne3 {[%emt 0:01:20]} Bxd3 {[%emt 0:00:26]} 14. Qxd3 {[%emt 0:00:07]} Nf8 {[%emt 0:01:09]} 15. O-O {[%emt 0:03:00]} Nfg6 {[%emt 0:03:25]} 16. g3 {[%emt 0:03:34]} Qd7 {[%emt 0:04:47]} 17. Kg2 {[%emt 0:03:00]} Nc8 {[%emt 0:01:27]} 18. Rae1 {[%emt 0:02:27]} Nd6 {[%emt 0:00:10]} 19. h4 {[%emt 0:00:55]} Re7 {[%emt 0:04:52]} 20. h5 {[%emt 0:04:13]} Nf8 {[%emt 0:00:01]} 21. f3 {[%emt 0:00:19]} Qe8 {[%emt 0:03:52]} 22. Nf4 {[%emt 0:02:20]} Nc4 {[%emt 0:04:37]} 23. Kf2 {[%emt 0:08:53]} Nxe3 {[%emt 0:06:51]} 24. Rxe3 {[%emt 0:00:11]} Rxe3 {[%emt 0:00:25]} 25. Qxe3 {[%emt 0:00:05]} Qxe3+ {[%emt 0:00:16]} 26. Kxe3 {[%emt 0:00:05]} Re8+ {[%emt 0:00:42]} 27. Kf2 {[%emt 0:00:37]} Kf7 {[%emt 0:00:08]} 28. g4 {[%emt 0:02:32]} b6 {[%emt 0:03:31]} 29. Rg1 {[%emt 0:02:11]} Nd7 {[%emt 0:05:24]} 30. g5 {[%emt 0:01:29]} fxg5 {[%emt 0:00:19]} 31. Rxg5 {[%emt 0:00:06]} Kf6 {[%emt 0:01:12]} 32. Rg4 {[%emt 0:00:40]} Rf8 {[%emt 0:03:22]} 33. Rg1 {[%emt 0:03:44]} Re8 {[%emt 0:03:10]} 34. Rg2 {[%emt 0:02:19]} Re7 {[%emt 0:01:32]} 35. b4 {[%emt 0:03:02]} Kf5 {[%emt 0:05:18]} 36. Nh3 {[%emt 0:02:21]} Nf6 {[%emt 0:01:28]} 37. Rg5+ {[%emt 0:01:16]} Ke6 {[%emt 0:00:08]} 38. Nf4+ {[%emt 0:00:06]} Kd6 {[%emt 0:00:21]} 39. Rf5 {[%emt 0:02:09]} Rf7 {[%emt 0:03:00]} 40. Nd3 {[%emt 0:03:09]} Ke6 {[%emt 0:02:24]} 41. Re5+ {[%emt 0:31:59]} Kd6 {[%emt 0:30:28]} 42. Rf5 {[%emt 0:00:24]} Rf8 {[%emt 0:02:18]} 43. Nf4 {[%emt 0:02:44]} Rf7 {[%emt 0:01:30]} 44. Nd3 {[%emt 0:00:09]} Rf8 {[%emt 0:00:12]} 45. Nf4 {[%emt 0:00:05]} Rf7 $14 {[%emt 0:00:00]} 46. Nd3 {[%emt 0:00:00] Ke5} 1/2-1/2